bitfinex/quotes_ETHUSD_20241225
["timestamp","ask_amount","ask_price","bid_price","bid_amount"]
[1735087052380,0.8211,3490.2,3489.3,0.8277]
[1735087052813,4.05841787,3490.4,3489.4,0.05229985]
[1735087053078,4.05841787,3490.4,3489.4,8.90229985]
[1735087053400,4.05841787,3490.4,3489.5,1.61630098]
[1735087053580,2.86502,3490.4,3489.5,1.61630098]
[1735087053780,2.86502,3490.4,3489.6,0.0519973]
[1735087054781,2.8651,3490.3,3489.6,0.0519973]
[1735087058050,2.86531,3490.1,3489.6,0.0519973]
[1735087058293,2.86557,3489.7,3489.6,0.0519973]
[1735087058455,2.86574,3489.5,3489.4,8.85]
[1735087058819,2.86574,3489.5,3488.7,9.6771]
[1735087059053,2.86558,3489.7,3488.7,9.6771]
[1735087059210,2.86558,3489.7,3488.8,0.05194719]
[1735087060236,2.8655,3489.8,3488.8,0.51816065]
[1735087061311,3.62324,3490.0,3488.9,0.8271]
[1735087061536,3.62324,3490.0,3489.0,0.05193237]
[1735087061741,3.62324,3490.0,3489.0,3.05193237]
[1735087063174,4.65589381,3490.6,3489.1,9.6771]
[1735087063175,0.7579,3490.3,3489.1,9.6771]
[1735087063499,0.7579,3490.3,3489.2,3.89073079]
[1735087063698,0.7579,3490.3,3489.3,3.693]
[1735087063896,0.7579,3490.3,3489.4,0.05190273]
[1735087064977,3.623,3490.3,3489.4,0.05190273]
[1735087065174,3.623,3490.3,3489.4,0.35751048]
[1735087066309,3.623,3490.3,3489.4,9.20751048]
[1735087068760,2.86519,3490.2,3489.4,9.20751048]
[1735087068965,2.86526,3490.1,3489.4,9.20751048]
[1735087069166,2.86526,3490.1,3489.4,0.35751048]
[1735087071032,2.8651,3490.3,3489.4,0.35751048]
[1735087071332,2.6301073,3490.7,3489.5,5.13391649]
[1735087071333,2.86489,3490.6,3489.5,5.13391649]
[1735087071518,2.86489,3490.6,3489.7,0.8244]
[1735087071715,2.86489,3490.6,3489.8,0.05193637]
[1735087072952,0.8287,3491.0,3489.9,2.86538]
[1735087073110,2.02209787,3491.2,3490.1,0.8244]
[1735087073314,2.86452,3491.0,3490.2,0.05190674]
[1735087074343,2.86452,3491.0,3490.1,0.8244]
[1735087074506,2.86452,3491.0,3490.2,0.05190674]
[1735087074708,2.86452,3491.0,3490.1,0.8244]
[1735087074907,0.8287,3491.2,3490.2,0.05190674]
[1735087075137,2.8646,3490.9,3490.1,1.22255116]
[1735087075306,2.8646,3490.9,3490.2,0.05190674]
[1735087077106,2.86467,3490.8,3490.2,0.05190674]
[1735087080160,2.02209787,3491.2,3490.2,0.05190674]
[1735087080662,2.86463,3490.9,3490.2,0.05190674]
[1735087081966,1.19339787,3491.2,3490.3,0.8244]
[1735087082289,1.19339787,3491.2,3490.5,0.8244]
[1735087082495,1.19339787,3491.2,3490.6,0.05127902]
[1735087083257,2.8647,3490.8,3490.6,0.05127902]
[1735087083468,2.8647,3490.8,3490.4,8.85]
[1735087083809,2.8647,3490.8,3490.5,0.05120592]
[1735087084097,2.8647,3490.8,3490.4,8.85]
[1735087085754,2.86447,3491.1,3490.5,0.7629]
[1735087086409,2.86447,3491.1,3490.6,0.05123876]
[1735087086756,1.19339787,3491.2,3490.5,1.72419]
[1735087086963,1.19339787,3491.2,3490.6,0.05123876]
[1735087087229,1.19339787,3491.4,3490.7,0.7629]
[1735087087414,1.19339787,3491.4,3490.9,0.7629]
[1735087087758,1.19339787,3491.4,3491.0,0.05112291]
[1735087088016,1.19339787,3491.4,3490.9,0.7629]
[1735087088317,1.19339787,3491.4,3491.0,0.05111141]
[1735087088456,1.19339787,3491.4,3490.9,0.7629]
[1735087088658,4.65501381,3491.6,3491.0,0.05111141]
[1735087088659,2.86402,3491.6,3491.0,0.05111141]
[1735087089216,2.86419,3491.4,3491.0,0.05111141]
[1735087089513,2.86419,3491.4,3490.9,0.7629]
[1735087089757,0.8044,3491.7,3491.0,0.05082973]
[1735087089919,3.66837,3491.7,3490.6,8.85]
[1735087090071,2.86421,3491.4,3490.7,0.05085194]
[1735087090267,2.864,3491.7,3490.8,0.7629]
[1735087090476,2.86401,3491.6,3490.9,0.05083713]
[1735087091676,2.86396,3491.7,3490.9,0.05083713]
[1735087092018,2.86396,3491.7,3490.9,1.40943474]
[1735087092230,0.8044,3492.0,3491.0,0.7671]
[1735087092430,2.86387,3491.8,3491.0,0.7671]
[1735087092590,2.86387,3491.8,3491.1,0.05086831]
[1735087093268,0.8044,3492.0,3491.1,0.05086831]
[1735087093468,2.86395,3491.7,3491.1,0.05086831]
[1735087094924,2.86402,3491.6,3491.1,0.05086831]
[1735087097380,2.6301073,3491.9,3491.1,0.05086831]
[1735087097547,2.86393,3491.7,3491.1,0.05086831]
[1735087097843,2.86401,3491.6,3490.8,0.7671]
[1735087098062,3.7771,3491.8,3491.2,0.05038952]
[1735087098233,4.05708787,3492.0,3491.3,0.7628]
[1735087098390,1.19339787,3492.0,3491.3,0.81318212]
[1735087098731,2.86381,3491.9,3491.3,0.81318212]
[1735087100993,2.86362,3492.1,3491.3,0.81318212]
[1735087101191,1.19339787,3492.3,3491.4,2.86414]
[1735087101409,1.19339787,3492.3,3491.6,0.7628]
[1735087101702,2.86364,3492.1,3491.7,0.05036976]
[1735087104312,2.86344,3492.3,3491.7,0.05036976]
[1735087107656,2.86361,3492.1,3491.7,0.05036976]
[1735087110054,0.01,3492.4,3491.7,0.05036976]
[1735087110219,0.362341,3492.3,3491.7,0.05036976]
[1735087111642,2.86367,3492.1,3491.7,0.05036976]
[1735087121472,2.86346,3492.3,3491.8,0.8034]
[1735087121863,2.86346,3492.3,3491.9,0.04922855]
[1735087122225,2.86346,3492.3,3491.8,0.8034]
[1735087122474,2.86346,3492.3,3492.0,0.04922115]
[1735087122665,2.86346,3492.3,3491.9,0.04922855]
[1735087122864,2.86352,3492.2,3492.1,0.04921375]
[1735087123044,2.86352,3492.2,3492.0,0.04922115]
[1735087123344,2.86352,3492.2,3492.1,0.04921375]
[1735087123568,2.86404,3491.6,3491.4,0.8034]
[1735087123815,0.7713,3492.1,3491.5,0.04906854]
[1735087124264,2.86387,3491.8,3491.1,0.8034]
[1735087124612,2.86394,3491.7,3491.2,0.04910223]
[1735087124792,2.86402,3491.6,3491.2,0.04910223]
[1735087128919,2.86411,3491.5,3491.2,0.04910223]
[1735087129300,2.86424,3491.4,3491.1,0.8034]
[1735087129627,2.86426,3491.3,3491.2,0.04927463]
[1735087129962,2.86426,3491.3,3490.8,0.7909]
[1735087129963,2.86418,3491.4,3490.8,0.7909]
[1735087130218,2.86445,3491.1,3490.9,0.04964734]
[1735087130900,2.8645,3491.0,3490.9,0.04964734]
[1735087131306,2.86459,3490.9,3490.5,0.7909]
[1735087131653,2.86459,3490.9,3490.6,0.04966955]
[1735087131863,2.86469,3490.8,3490.6,0.04966955]
[1735087131993,2.86469,3490.8,3490.5,0.7909]
[1735087132201,2.86469,3490.8,3490.6,0.04966955]
[1735087132584,2.86469,3490.8,3490.5,0.7909]
[1735087132696,2.86469,3490.8,3490.7,0.04966215]
[1735087132896,2.86469,3490.8,3490.6,0.04966955]
[1735087133214,2.86469,3490.8,3490.5,0.7909]
[1735087133531,2.86469,3490.8,3490.6,0.04966955]
[1735087133936,2.86469,3490.8,3490.5,0.7909]
[1735087134099,1.19339787,3491.1,3490.7,0.04966215]
[1735087134299,2.86459,3490.9,3490.6,0.04966955]
[1735087134731,2.86459,3490.9,3490.5,0.7909]
[1735087134940,2.86459,3490.9,3490.7,0.04966215]
[1735087135154,4.85872639,3491.1,3490.6,0.04966955]
[1735087135358,4.05783787,3491.1,3490.5,0.7909]
[1735087135659,1.19339787,3491.1,3490.6,0.04966955]
[1735087136117,1.19339787,3491.1,3490.5,0.7909]
[1735087136317,2.86437,3491.2,3490.7,0.04966215]
[1735087136649,2.86437,3491.2,3490.8,0.04965474]
[1735087137051,2.86437,3491.2,3490.5,0.7909]
[1735087137405,2.86437,3491.2,3490.6,0.04966955]
[1735087137800,1.19339787,3491.3,3490.6,0.04966955]
[1735087138001,1.19339787,3491.3,3490.7,0.7909]
[1735087138303,1.19339787,3491.3,3490.8,0.04965474]
[1735087138949,1.19339787,3491.3,3490.7,0.7909]
[1735087139169,1.19339787,3491.3,3490.9,0.04964734]
[1735087139170,0.95285697,3491.3,3490.9,0.04964734]
[1735087139452,3.81712697,3491.3,3491.0,0.04963994]
[1735087139656,0.95285697,3491.3,3491.0,0.04963994]
[1735087139822,2.86434,3491.2,3490.7,0.7909]
[1735087140154,2.86434,3491.2,3490.8,0.04965474]
[1735087140350,3.81719697,3491.2,3490.8,0.04965474]
[1735087140505,3.81719697,3491.2,3490.7,0.7909]
[1735087140705,3.81719697,3491.2,3490.9,0.04964734]
[1735087140957,3.81719697,3491.2,3490.8,0.04965474]
[1735087141138,3.81719697,3491.2,3491.0,0.04963994]
[1735087141459,2.8645,3491.0,3490.4,0.7909]
[1735087141600,2.86498,3490.5,3490.2,0.7909]
[1735087142360,2.86476,3490.7,3490.2,0.7909]
[1735087143314,2.86486,3490.6,3490.2,0.7909]
[1735087143567,2.86492,3490.5,3490.2,0.7909]
[1735087144445,2.86508,3490.3,3489.7,0.7863]
[1735087146271,2.86467,3490.8,3489.7,0.7863]
[1735087146491,2.86493,3490.5,3489.7,0.7863]
[1735087147712,4.05799787,3490.9,3489.8,3.65178]
[1735087147907,1.19339787,3490.9,3490.0,0.7863]
[1735087148197,2.86475,3490.7,3490.1,2.84628631]
[1735087148499,2.86475,3490.7,3490.0,0.7863]
[1735087150077,2.86456,3491.0,3490.0,0.7863]
[1735087150952,2.86456,3491.0,3490.0,2.86528]
[1735087151152,2.86456,3491.0,3490.1,0.7863]
[1735087151569,2.86434,3491.2,3490.2,0.7863]
[1735087151787,2.86434,3491.2,3490.4,0.7863]
[1735087151989,3.21748624,3491.6,3490.4,0.7863]
[1735087151990,4.05756787,3491.5,3490.4,0.7863]
[1735087152206,2.86422,3491.4,3490.4,0.7863]
[1735087153218,2.86422,3491.4,3490.5,0.7863]
[1735087156297,2.86422,3491.4,3490.6,0.04860385]
[1735087157182,2.86422,3491.4,3490.6,1.39996323]
[1735087157521,2.86422,3491.4,3490.7,0.7863]
[1735087158032,2.86422,3491.4,3490.8,0.04858904]
[1735087158336,0.8231,3491.6,3490.8,0.04858904]
[1735087158497,2.86427,3491.3,3490.8,0.04858904]
[1735087159033,2.86427,3491.3,3490.7,0.7863]
[1735087159197,2.86427,3491.3,3490.8,0.04858904]
[1735087159379,2.86435,3491.2,3490.7,0.7863]
[1735087159580,2.86435,3491.2,3490.8,0.04858904]
[1735087159836,2.86435,3491.2,3490.7,0.7863]
[1735087160138,2.86435,3491.2,3490.8,0.04852581]
[1735087160632,2.86435,3491.2,3490.7,1.74993]
[1735087160811,2.01649787,3491.6,3490.9,0.04851841]
[1735087161011,2.86418,3491.4,3490.7,1.74993]
[1735087161533,1.19339787,3491.6,3490.9,0.7991]
[1735087161742,4.05741787,3491.6,3490.9,0.7991]
[1735087162031,2.86409,3491.5,3491.0,0.04859723]
[1735087162335,2.86409,3491.5,3490.9,0.7991]
[1735087162548,2.86409,3491.5,3491.1,0.04858983]
[1735087162831,2.86409,3491.5,3491.0,0.04859723]
[1735087163132,2.86409,3491.5,3491.1,0.04858983]
[1735087163515,2.86409,3491.5,3490.9,0.7991]
[1735087164134,2.86409,3491.5,3491.0,0.04859723]
[1735087164474,2.86409,3491.5,3490.9,0.7991]
[1735087164678,2.86409,3491.5,3491.1,0.04858983]
[1735087164937,2.86409,3491.5,3491.0,0.04830983]
[1735087165247,2.86409,3491.5,3491.1,0.04830243]
[1735087165535,2.86409,3491.5,3490.9,0.7991]
[1735087165740,2.86409,3491.5,3491.2,0.04829503]
[1735087165903,2.86409,3491.5,3490.9,0.7991]
[1735087166740,2.86409,3491.5,3491.0,0.04830983]
[1735087167243,2.86409,3491.5,3491.1,0.04830243]
[1735087167387,2.86409,3491.5,3490.9,0.7991]
[1735087167590,2.86409,3491.5,3491.0,0.04830983]
[1735087167814,2.86409,3491.5,3490.9,0.7991]
[1735087168088,2.86409,3491.5,3491.0,0.04830983]
[1735087168540,2.86409,3491.5,3490.9,0.7991]
[1735087168688,2.86409,3491.5,3491.1,0.04830243]
[1735087168887,2.86409,3491.5,3491.0,0.04830983]
[1735087169108,2.86409,3491.5,3491.2,0.04829503]
[1735087169307,2.86409,3491.5,3491.1,0.04830243]
[1735087169558,1.19339787,3491.6,3491.3,0.04828763]
[1735087169755,2.86418,3491.4,3491.2,0.04829503]
[1735087169952,2.86418,3491.4,3490.9,0.7991]
[1735087170154,3.81754744,3491.4,3491.3,0.04828763]
[1735087170408,2.45086135,3491.4,3490.9,0.7991]
[1735087170605,2.45086135,3491.4,3491.0,0.04830983]
[1735087170866,2.86442,3491.1,3490.5,8.85]
[1735087171162,2.86478,3490.7,3490.6,0.04674219]
[1735087171665,2.86478,3490.7,3490.6,0.04515299]
[1735087171866,2.86478,3490.7,3490.4,0.7991]
[1735087172073,2.86478,3490.7,3490.5,0.04516039]
[1735087172214,2.86478,3490.7,3490.4,0.7991]
[1735087172562,2.86478,3490.7,3490.5,0.04516039]
[1735087172863,2.86478,3490.7,3490.4,0.7991]
[1735087173007,2.86478,3490.7,3490.5,0.04516039]
[1735087173209,4.05800787,3490.9,3490.4,0.7991]
[1735087173451,4.05800787,3490.9,3490.5,0.04516039]
[1735087173624,1.19339787,3490.9,3490.4,0.7991]
[1735087173846,2.86468,3490.8,3490.5,0.04516039]
[1735087174043,2.86468,3490.8,3490.4,0.7991]
[1735087174369,2.86468,3490.8,3490.5,0.04516039]
[1735087174711,2.86468,3490.8,3490.4,0.7991]
[1735087175021,2.86468,3490.8,3490.5,0.04516039]
[1735087175207,2.86468,3490.8,3490.4,0.7991]
[1735087175409,2.86468,3490.8,3490.5,0.04516039]
[1735087175627,2.86468,3490.8,3490.4,0.7991]
[1735087175912,2.86468,3490.8,3490.5,0.04516039]
[1735087176223,2.86468,3490.8,3490.4,0.7991]
[1735087176433,2.86468,3490.8,3490.5,0.04539606]
[1735087176740,2.86479,3490.7,3490.4,0.7991]
[1735087176926,2.86479,3490.7,3490.6,0.04538865]
[1735087177122,2.86479,3490.7,3490.5,0.04539606]
[1735087177365,2.86479,3490.7,3490.4,0.7991]
[1735087177672,2.86479,3490.7,3490.5,0.04539606]
[1735087177811,2.86483,3490.6,3490.4,0.7991]
[1735087178155,2.86483,3490.6,3490.5,0.04539606]
[1735087179258,4.05803787,3490.9,3490.4,0.7991]
[1735087179259,2.86491,3490.5,3490.4,0.7991]
[1735087179467,2.86508,3490.4,3489.9,0.7999]
[1735087179623,0.7523,3490.7,3489.9,1.88493985]
[1735087179831,2.86532,3490.0,3489.9,0.7999]
[1735087181371,2.86565,3489.6,3489.5,0.7999]
[1735087181875,2.86574,3489.5,3489.4,1.20049851]
[1735087182235,2.8659,3489.3,3489.2,2.00039851]
[1735087184138,2.8659,3489.3,3489.2,0.7999]
[1735087186243,2.8659,3489.3,3489.2,0.84582928]
[1735087187379,2.8659,3489.3,3489.2,2.17177981]
[1735087188257,2.8659,3489.3,3489.2,0.84582928]
[1735087189013,2.8659,3489.3,3489.2,0.04592928]
[1735087189305,0.7643,3489.6,3488.9,1.35567604]
[1735087189459,2.86605,3489.2,3488.9,1.35567604]
[1735087190353,3.63,3489.6,3488.9,0.56367604]
[1735087190553,3.63,3489.6,3488.4,8.85]
[1735087190554,2.86582,3489.4,3488.3,0.792]
[1735087190872,2.86663,3488.5,3488.3,0.792]
[1735087191407,2.86664,3488.4,3488.3,0.792]
[1735087193060,2.86675,3488.3,3488.0,0.7905]
[1735087194572,3.6632,3488.7,3488.0,0.7905]
[1735087194780,2.86681,3488.2,3488.0,0.7905]
[1735087195105,2.86683,3488.2,3488.0,0.7905]
[1735087199997,2.86656,3488.5,3487.8,0.7905]
[1735087200311,0.366336,3488.5,3487.6,0.7905]
[1735087200528,2.86708,3487.9,3487.6,0.7905]
[1735087201405,2.86713,3487.8,3487.7,0.03379268]
[1735087201772,2.86713,3487.8,3487.3,0.7905]
[1735087201773,2.86732,3487.6,3487.3,0.7905]
[1735087202275,2.86732,3487.6,3487.4,0.0340049]
[1735087205118,0.7968,3488.2,3487.4,0.0340049]
[1735087205274,2.86738,3487.5,3487.4,0.0340049]
[1735087205968,3.4259073,3487.6,3486.6,0.7515]
[1735087206170,2.86783,3487.0,3486.6,0.7515]
[1735087206422,2.86783,3487.0,3486.7,0.02920579]
[1735087206851,2.86783,3487.0,3486.6,0.7515]
[1735087207255,2.86783,3487.0,3486.7,0.03008112]
[1735087210215,0.7958,3487.6,3486.7,0.03008112]
[1735087210470,2.86788,3486.9,3486.7,0.03008112]
[1735087213457,2.86795,3486.8,3486.7,0.03008112]
[1735087213662,2.86794,3486.9,3486.7,0.03008112]
[1735087215163,2.86795,3486.8,3486.7,0.03008112]
[1735087215597,2.86795,3486.8,3486.3,0.7932]
[1735087215899,2.86795,3486.8,3486.3,3.63948631]
[1735087216194,2.86795,3486.8,3486.4,0.03047023]
[1735087217599,3.67464,3487.1,3486.4,0.03047023]
[1735087217762,2.86774,3487.1,3486.5,0.7932]
[1735087217996,2.86774,3487.1,3486.5,35.7932]
[1735087218169,2.86774,3487.1,3486.6,2.8767417]
[1735087218596,2.86774,3487.1,3486.6,0.03045539]
[1735087219287,2.86802,3486.8,3486.6,0.03045539]
[1735087219487,2.86804,3486.7,3486.6,0.03045539]
[1735087219774,2.86821,3486.5,3486.0,0.784]
[1735087220088,2.86821,3486.5,3486.1,1.2634]
[1735087220413,2.86832,3486.4,3486.1,1.2634]
[1735087220618,2.86832,3486.4,3486.0,0.784]
[1735087222331,2.86843,3486.3,3486.0,0.784]
[1735087222697,2.86845,3486.2,3486.0,0.784]
[1735087222896,0.753,3486.5,3485.6,0.784]
[1735087223107,2.86882,3485.8,3485.4,0.784]
[1735087224220,0.753,3486.3,3485.4,0.784]
[1735087224533,2.86858,3486.1,3485.4,0.784]
[1735087225102,3.6212,3486.6,3485.7,0.784]
[1735087225300,3.6212,3486.6,3485.6,3.0]
[1735087225301,2.8682,3486.6,3485.8,1.2634]
[1735087225510,2.8682,3486.6,3485.9,0.784]
[1735087225711,4.06065787,3487.7,3485.8,1.2634]
[1735087225712,2.86753,3487.4,3486.4,0.784]
[1735087225914,0.753,3487.6,3486.4,0.784]
[1735087226355,2.86739,3487.5,3486.6,8.85]
[1735087226572,2.86699,3488.0,3486.9,0.784]
[1735087226847,2.86706,3487.9,3486.9,0.784]
[1735087227195,2.86713,3487.8,3486.9,0.784]
[1735087230250,0.753,3488.2,3486.9,0.784]
[1735087230565,0.753,3487.9,3486.8,3.0]
[1735087230762,0.753,3487.9,3486.7,8.85]
[1735087230965,0.753,3487.7,3486.7,8.85]
[1735087231166,2.86786,3487.0,3486.7,8.85]
[1735087231330,2.86786,3487.0,3486.8,0.02934911]
[1735087231847,2.86786,3487.0,3486.6,0.784]
[1735087232045,2.86786,3487.0,3486.9,0.02934169]
[1735087232232,2.86786,3487.0,3486.6,0.784]
[1735087232416,2.86786,3487.0,3486.9,0.05803811]
[1735087232662,2.86786,3487.0,3486.6,0.784]
[1735087232965,0.753,3487.7,3486.6,0.784]
[1735087233186,2.86765,3487.2,3486.7,0.05811792]
[1735087234873,2.86775,3487.1,3486.7,0.05811792]
[1735087241296,2.00659787,3488.0,3486.9,0.7972]
[1735087241461,2.86713,3487.9,3487.1,0.7972]
[1735087241866,4.06052787,3487.9,3487.2,0.05771385]
[1735087243040,2.86713,3487.9,3487.2,0.05771385]
[1735087243466,2.86713,3487.9,3487.2,0.42999123]
[1735087243637,2.86713,3487.9,3487.2,0.05771385]
[1735087248803,4.06035787,3488.1,3487.2,0.05771385]
[1735087249449,1.19339787,3488.1,3487.2,0.05771385]
[1735087249797,2.86707,3487.9,3487.2,0.05771385]
[1735087250158,2.86732,3487.6,3487.2,0.05771385]
[1735087250548,0.366782,3487.6,3487.2,0.05771385]
[1735087250775,2.86754,3487.3,3487.2,0.05771385]
[1735087251192,2.86754,3487.3,3487.0,8.85]
[1735087251486,1.99389787,3488.0,3487.3,0.822]
[1735087251690,1.81132566,3488.0,3487.4,0.05689061]
[1735087251907,1.19339787,3488.0,3487.2,2.86755]
[1735087252107,1.19339787,3488.0,3487.4,0.822]
[1735087252262,1.19339787,3488.0,3487.5,0.05688237]
[1735087252604,1.19339787,3488.0,3487.6,0.822]
[1735087252793,1.19339787,3488.1,3487.6,0.822]
[1735087252996,1.19339787,3488.1,3487.7,0.0568659]
[1735087254401,2.86667,3488.4,3487.7,0.0568659]
[1735087255686,2.86675,3488.3,3487.7,0.0568659]
[1735087261348,0.8005,3488.6,3487.7,0.0568659]
[1735087261535,2.86656,3488.5,3487.7,0.0568659]
[1735087261736,2.86656,3488.5,3487.7,0.88133619]
[1735087261942,2.86665,3488.4,3487.7,0.88133619]
[1735087262650,2.86674,3488.3,3487.7,0.88133619]
[1735087263770,0.8005,3488.6,3487.7,0.0568659]
[1735087263771,2.86656,3488.5,3487.7,0.0568659]
[1735087263954,2.86687,3488.2,3487.7,0.0568659]
[1735087266023,0.7625,3488.0,3487.7,0.0568659]
[1735087266271,2.86713,3487.8,3487.7,0.0568659]
[1735087266470,2.86757,3487.3,3487.1,0.7586]
[1735087266766,2.8674,3487.5,3486.8,0.7586]
[1735087267672,2.86753,3487.4,3486.8,0.7586]
[1735087268257,2.86721,3487.7,3486.8,0.7586]
[1735087268567,0.7625,3487.8,3486.8,0.7586]
[1735087268568,2.86774,3487.1,3486.8,0.7586]
[1735087270774,2.86774,3487.1,3486.4,0.7586]
[1735087273476,3.63004,3487.4,3486.4,0.7586]
[1735087273678,2.86754,3487.4,3486.6,0.7586]
[1735087275270,0.7625,3487.6,3486.6,0.7586]
[1735087275477,2.86742,3487.5,3486.6,0.7586]
[1735087276433,0.7625,3487.6,3486.7,0.05692527]
[1735087276634,2.86759,3487.3,3486.7,0.05692527]
[1735087277584,2.86763,3487.2,3486.7,0.05692527]
[1735087279818,2.86746,3487.4,3486.7,0.05692527]
[1735087280819,3.62981,3487.6,3486.7,0.05692527]
[1735087280954,1.19339787,3487.7,3486.9,0.8044]
[1735087281160,1.19339787,3487.7,3487.0,0.05723444]
[1735087281775,1.19339787,3487.7,3487.1,0.8044]
[1735087282344,2.86698,3488.0,3487.2,0.05736766]
[1735087283053,1.19339787,3488.1,3487.3,0.8044]
[1735087283338,1.19339787,3488.1,3487.4,0.05735117]
[1735087283688,1.19339787,3488.2,3487.5,0.8044]
[1735087283891,1.19339787,3488.2,3487.6,0.05717349]
[1735087284111,4.06021787,3488.2,3487.6,0.05717349]
[1735087284998,2.86682,3488.2,3487.6,0.05717349]
[1735087286158,0.7609,3488.1,3487.6,0.05717349]
[1735087286332,0.7609,3488.1,3487.3,9.6544]
[1735087286514,2.86733,3487.6,3487.4,0.05718997]
[1735087289033,2.86733,3487.6,3487.0,0.8044]
[1735087289216,2.86733,3487.6,3487.5,0.05718173]
[1735087289419,2.86733,3487.6,3487.0,0.8044]
[1735087289620,2.86733,3487.6,3487.5,0.05718173]
[1735087289843,2.86733,3487.6,3487.0,0.8044]
[1735087290046,2.86733,3487.6,3487.5,0.05718173]
[1735087290248,2.86733,3487.6,3487.0,0.8044]
[1735087290499,0.7609,3487.6,3487.0,0.8044]
[1735087290710,2.86747,3487.4,3487.1,0.05721469]
[1735087291965,0.7609,3487.6,3487.1,0.05721469]
[1735087292138,3.6282,3487.6,3487.1,0.05721469]
[1735087292337,2.8673,3487.6,3487.1,0.05721469]
[1735087293727,0.7639,3487.8,3487.1,0.05721469]
[1735087293938,0.7639,3487.6,3487.1,0.05721469]
[1735087294132,0.7639,3487.6,3486.7,0.8055]
[1735087294133,2.86771,3487.1,3486.7,0.8055]
[1735087294337,2.86771,3487.1,3486.8,0.05708398]
[1735087294560,2.86771,3487.1,3486.7,0.8055]
[1735087294753,0.7639,3487.6,3486.8,0.05708398]
[1735087294940,2.86757,3487.3,3486.8,0.05708398]
[1735087295141,2.86757,3487.3,3486.7,0.8055]
[1735087295342,2.86757,3487.3,3486.8,0.05708398]
[1735087295533,2.86757,3487.3,3486.7,0.8055]
[1735087295732,2.86757,3487.3,3486.8,0.05708398]
[1735087295932,2.86757,3487.3,3486.7,0.8055]
[1735087296163,0.66941498,3487.5,3486.8,0.05708398]
[1735087296164,1.86281285,3487.5,3486.8,0.05708398]
[1735087296362,2.86777,3487.1,3486.7,0.8055]
[1735087296672,0.7768,3487.3,3486.8,0.05708398]
[1735087296975,0.51841069,3487.4,3485.9,10.05049851]
[1735087296976,3.64467,3486.9,3486.0,0.7948]
[1735087297120,2.8683,3486.4,3486.1,0.05714169]
[1735087297552,2.8683,3486.4,3485.7,1.99529851]
[1735087297749,2.8683,3486.4,3485.8,0.05716643]
[1735087299481,4.83806787,3486.9,3485.8,0.05716643]
[1735087299690,1.19339787,3486.9,3485.9,0.7948]
[1735087299828,1.19339787,3486.9,3486.1,2.86852]
[1735087300037,1.19339787,3486.9,3486.2,0.7948]
[1735087300256,1.19339787,3486.9,3486.2,0.85193345]
[1735087300657,1.19339787,3487.1,3486.2,1.22951671]
[1735087300993,4.06112787,3487.1,3486.2,1.22951671]
[1735087301691,2.86773,3487.1,3486.2,1.22951671]
[1735087303607,3.64435,3487.3,3486.3,0.7948]
[1735087303972,3.64435,3487.3,3486.4,0.05711696]
[1735087304175,2.86764,3487.2,3486.4,0.05711696]
[1735087307608,2.86764,3487.2,3486.5,0.7948]
[1735087307753,2.86764,3487.2,3486.5,0.85225418]
[1735087311375,1.19339787,3487.4,3486.6,0.7998]
[1735087311556,1.19339787,3487.4,3486.5,3.33548192]
[1735087311557,1.19339787,3487.4,3486.7,0.0576853]
[1735087311752,1.19339787,3487.4,3486.8,0.7998]
[1735087311958,1.19339787,3487.4,3486.9,0.05766881]
[1735087312664,3.55537855,3487.5,3486.9,0.05766881]
[1735087313290,3.55537855,3487.5,3487.0,0.7998]
[1735087313710,3.55537855,3487.5,3487.1,0.05765233]
[1735087314321,2.36198068,3487.6,3487.1,0.05765233]
[1735087315820,2.8673,3487.6,3487.1,0.05765233]
[1735087316118,2.86714,3487.8,3487.1,0.05765233]
[1735087316991,4.06053787,3487.8,3487.1,0.05765233]
[1735087317392,4.06053787,3487.8,3487.2,0.7998]
[1735087317610,4.06053787,3487.8,3487.3,0.05748037]
[1735087317814,4.06053787,3487.8,3487.2,0.7998]
[1735087318336,4.06053787,3487.8,3487.3,0.05748037]
[1735087318496,2.86714,3487.8,3487.3,0.05748037]
[1735087318682,2.86714,3487.8,3487.2,0.7998]
[1735087319084,2.86714,3487.8,3487.3,0.05748037]
[1735087319519,2.86714,3487.8,3487.2,0.7998]
[1735087320034,2.86714,3487.8,3487.3,0.05748037]
[1735087320326,2.86714,3487.8,3487.2,0.7998]
[1735087320478,4.06042787,3488.0,3487.2,0.7998]
[1735087320679,4.06042787,3488.0,3487.3,0.8569579]
[1735087321078,1.19339787,3488.0,3487.3,0.8569579]
[1735087321274,1.19339787,3488.0,3487.3,0.0571579]
[1735087321535,1.19339787,3488.0,3487.5,0.7998]
[1735087321711,1.19339787,3488.1,3487.5,0.7998]
[1735087322032,1.19339787,3488.1,3487.7,0.7998]
[1735087322403,1.19339787,3488.1,3487.8,0.05689793]
[1735087322604,1.19339787,3488.1,3487.7,0.7998]
[1735087322800,1.19339787,3488.1,3487.8,0.05689793]
[1735087323042,0.8029,3488.2,3487.3,8.85]
[1735087323218,2.86722,3487.7,3487.3,8.85]
[1735087323458,0.8029,3488.2,3487.3,8.85]
[1735087323618,0.366966,3488.1,3487.3,8.85]
[1735087324219,1.19339787,3488.0,3487.3,8.85]
[1735087324637,1.19339787,3488.0,3487.1,0.8289]
[1735087324821,2.86714,3487.8,3487.1,0.8289]
[1735087325223,3.55585128,3488.0,3487.1,2.6301073]
[1735087325478,3.55585128,3488.0,3487.5,0.8289]
[1735087326063,5.8446305,3488.5,3487.5,0.8289]
[1735087326064,4.05996787,3488.5,3487.5,0.8289]
[1735087326464,2.86673,3488.3,3487.5,0.8289]
[1735087327872,1.19339787,3488.6,3487.5,0.8289]
[1735087328040,2.86681,3488.2,3487.5,0.8289]
[1735087328225,2.86681,3488.2,3487.5,2.52835207]
[1735087330989,2.86667,3488.4,3487.5,2.52835207]
[1735087331192,1.19339787,3488.6,3487.6,3.69612]
[1735087331399,1.19339787,3488.6,3487.7,0.8289]
[1735087331778,4.05981787,3488.7,3487.7,9.6789]